fUSD/lending_fUSD_20240118
["ID","MTS","AMOUNT","RATE_DAILY","PERIOD"]
[312046379,1705572292504,500.0,0.00035204,30]
[312046380,1705572292637,525.41,0.00035204,30]
[312046381,1705572292674,934.96,0.00035204,30]
[312046382,1705572292828,500.0,0.00035204,30]
[312046383,1705572292893,525.41,0.00035204,30]
[312046384,1705572292928,934.96,0.00035204,30]
[312046385,1705572293071,500.0,0.00035204,30]
[312046386,1705572293736,525.41,0.00035204,30]
[312046387,1705572293780,500.0,0.00035204,30]
[312046388,1705572293815,934.96,0.00035204,30]
[312046389,1705572293949,934.96,0.00035204,30]
[312046390,1705572294116,934.96,0.00035204,30]
[312046391,1705572294151,525.41,0.00035204,30]
[312046392,1705572294223,500.0,0.00035204,30]
[312046393,1705572294382,934.96,0.00035204,30]
[312046394,1705572294508,500.0,0.00035204,30]
[312046395,1705572294599,525.41,0.00035204,30]
[312046396,1705572294665,934.96,0.00035204,30]
[312046397,1705572294766,500.0,0.00035204,30]
[312046398,1705572294854,525.41,0.00035204,30]
[312046399,1705572294959,934.96,0.00035204,30]
[312046400,1705572294995,500.0,0.00035204,30]
[312046401,1705572295045,500.0,0.00035204,30]
[312046402,1705572295107,525.41,0.00035204,30]
[312046403,1705572295222,934.96,0.00035204,30]
[312046404,1705572295334,500.0,0.00035204,30]
[312046405,1705572295400,525.41,0.00035204,30]
[312046406,1705572295601,934.96,0.00035204,30]
[312046407,1705572295657,525.41,0.00035204,30]
[312046408,1705572295911,934.96,0.00035204,30]
[312046409,1705572295950,525.41,0.00035204,30]
[312046410,1705572295987,500.0,0.00035204,30]
[312046411,1705572296173,934.96,0.00035204,30]
[312046412,1705572296210,525.41,0.00035204,30]
[312046413,1705572296246,500.0,0.00035204,30]
[312046414,1705572296425,934.96,0.00035204,30]
[312046415,1705572296465,525.41,0.00035204,30]
[312046416,1705572296504,500.0,0.00035204,30]
[312046417,1705572296697,934.96,0.00035204,30]
[312046418,1705572296732,525.41,0.00035204,30]
[312046419,1705572297001,525.41,0.00035204,30]
[312046420,1705572297064,500.0,0.00035204,30]
[312046421,1705572297120,500.0,0.00035204,30]
[312046422,1705572297271,525.41,0.00035204,30]
[312046423,1705572297308,934.96,0.00035204,30]
[312046424,1705572297381,500.0,0.00035204,30]
[312046425,1705572297415,500.0,0.00035204,30]
[312046426,1705572297528,525.41,0.00035204,30]
[312046427,1705572297601,934.96,0.00035204,30]
[312046428,1705572297649,500.0,0.00035204,30]
[312046429,1705572297691,500.0,0.00035204,30]
[312046430,1705572297792,525.41,0.00035204,30]
[312046431,1705572297931,500.0,0.00035204,30]
[312046432,1705572298041,525.41,0.00035204,30]
[312046433,1705572298178,500.0,0.00035204,30]
[312046434,1705572298212,934.96,0.00035204,30]
[312046435,1705572298257,500.0,0.00035204,30]
[312046436,1705572298498,525.41,0.00035204,30]
[312046437,1705572298541,500.0,0.00035204,30]
[312046438,1705572298576,631.83,0.00035204,30]
[312046439,1705572298609,525.41,0.00035204,30]
[312046440,1705572298715,500.0,0.00035204,30]
[312046441,1705572298796,934.96,0.00035204,30]
[312046442,1705572298905,525.41,0.00035204,30]
[312046443,1705572299042,934.96,0.00035204,30]
[312046444,1705572299253,525.41,0.00035204,30]
[312046445,1705572299294,500.0,0.00035204,30]
[312046446,1705572299370,500.0,0.00035204,30]
[312046447,1705572299405,525.41,0.00035204,30]
[312046448,1705572299440,934.96,0.00035204,30]
[312046449,1705572299650,500.0,0.00035204,30]
[312046450,1705572299687,934.96,0.00035204,30]
[312046451,1705572299719,525.61356034,0.00035204,30]
[312046452,1705572299753,1345.21,0.00035204,30]
[312046453,1705572299902,500.0,0.00035204,30]
[312046454,1705572299974,1345.21,0.00035204,30]
[312046455,1705572300023,935.13971344,0.00035204,30]
[312046456,1705572300223,500.0,0.00035204,30]
[312046457,1705572300263,1345.21,0.00035204,30]
[312046458,1705572300492,1345.21,0.00035204,30]
[312046459,1705572300558,287.97813589,0.00035204,30]
[312046460,1705572300751,1345.21,0.00035204,30]
[312046461,1705572301047,1345.21,0.00035204,30]
[312046462,1705572301295,1345.21,0.00035204,30]
[312046463,1705572301331,195.6,0.00035204,30]
[312046464,1705572301923,1345.21,0.00035204,30]
[312046465,1705572302158,518.79,0.00035204,30]
[312046466,1705572302292,1345.21,0.00035204,30]
[312046467,1705572302419,518.79,0.00035204,30]
[312046468,1705572302505,1345.21,0.00035204,30]
[312046469,1705572302672,518.79,0.00035204,30]
[312046470,1705572302797,770.13,0.00035204,30]
[312046471,1705572302923,518.79,0.00035204,30]
[312046472,1705572302965,500.0,0.00035204,30]
[312046473,1705572303051,770.13,0.00035204,30]
[312046474,1705572303194,1345.21,0.00035204,30]
[312046475,1705572303231,518.79,0.00035204,30]
[312046476,1705572303310,770.13,0.00035204,30]
[312046477,1705572303464,518.79,0.00035204,30]
[312046478,1705572303499,1345.21,0.00035204,30]
[312046479,1705572303535,500.0,0.00035204,30]
[312046480,1705572303660,770.13,0.00035204,30]
[312046481,1705572303983,518.79,0.00035204,30]
[312046482,1705572304018,1345.21,0.00035204,30]
[312046483,1705572304058,500.0,0.00035204,30]
[312046484,1705572304102,1345.21,0.00035204,30]
[312046485,1705572304137,518.79,0.00035204,30]
[312046486,1705572304180,500.0,0.00035204,30]
[312046487,1705572304273,770.13,0.00035204,30]
[312046488,1705572304308,1345.21,0.00035204,30]
[312046489,1705572304342,518.79,0.00035204,30]
[312046490,1705572304443,500.0,0.00035204,30]
[312046491,1705572304519,500.0,0.00035204,30]
[312046492,1705572304552,518.79,0.00035204,30]
[312046493,1705572304585,1345.21,0.00035204,30]
[312046494,1705572304618,770.13,0.00035204,30]
[312046495,1705572304704,213.58175759,0.00035204,30]
[312046496,1705572304737,592.6,0.00035204,30]
[312046497,1705572304809,1345.21,0.00035204,30]
[312046498,1705572304842,518.79,0.00035204,30]
[312046499,1705572305088,518.79,0.00035204,30]
[312046500,1705572305130,770.13,0.00035204,30]
[312046501,1705572305379,518.79,0.00035204,30]
[312046502,1705572305421,770.13,0.00035204,30]
[312046503,1705572305456,1345.21,0.00035204,30]
[312046504,1705572305491,1703.1,0.00035204,30]
[312046505,1705572305718,500.0,0.00035204,30]
[312046506,1705572305756,518.79,0.00035204,30]
[312046507,1705572305794,770.13,0.00035204,30]
[312046508,1705572305829,1345.21,0.00035204,30]
[312046509,1705572305865,1703.1,0.00035204,30]
[312046510,1705572305926,770.13,0.00035204,30]
[312046511,1705572306038,518.79,0.00035204,30]
[312046512,1705572306196,770.13,0.00035204,30]
[312046513,1705572306349,1345.21,0.00035204,30]
[312046514,1705572306387,1703.1,0.00035204,30]
[312046515,1705572306454,518.79,0.00035204,30]
[312046516,1705572306518,770.13,0.00035204,30]
[312046517,1705572306600,1345.21,0.00035204,30]
[312046518,1705572306635,1703.1,0.00035204,30]
[312046519,1705572306704,518.79,0.00035204,30]
[312046520,1705572306818,770.13,0.00035204,30]
[312046521,1705572306855,1345.21,0.00035204,30]
[312046522,1705572306901,1703.1,0.00035204,30]
[312046523,1705572307043,518.79,0.00035204,30]
[312046524,1705572307086,770.13,0.00035204,30]
[312046525,1705572307120,6184.5,0.00035204,30]
[312046526,1705572307176,1703.1,0.00035204,30]
[312046527,1705572307260,518.79,0.00035204,30]
[312046528,1705572307343,770.13,0.00035204,30]
[312046529,1705572307430,6184.5,0.00035204,30]
[312046530,1705572307465,1703.1,0.00035204,30]
[312046531,1705572307500,1345.21,0.00035204,30]
[312046532,1705572307535,846.31,0.00035204,30]
[312046533,1705572307570,518.79,0.00035204,30]
[312046534,1705572307607,770.13,0.00035204,30]
[312046535,1705572307680,6184.5,0.00035204,30]
[312046536,1705572307714,1703.1,0.00035204,30]
[312046537,1705572307747,1345.36195029,0.00035204,30]
[312046538,1705572307782,846.31,0.00035204,30]
[312046539,1705572307815,518.79,0.00035204,30]
[312046540,1705572307866,770.13,0.00035204,30]
[312046541,1705572307945,6184.5,0.00035204,30]
[312046542,1705572308031,846.31,0.00035204,30]
[312046543,1705572308079,518.79,0.00035204,30]
[312046544,1705572308142,770.13,0.00035204,30]
[312046545,1705572308290,1703.1,0.00035204,30]
[312046546,1705572308325,6184.5,0.00035204,30]
[312046547,1705572308359,518.79,0.00035204,30]
[312046548,1705572308392,846.31,0.00035204,30]
[312046549,1705572308426,770.13,0.00035204,30]
[312046550,1705572308570,6184.5,0.00035204,30]
[312046551,1705572308603,518.95864238,0.00035204,30]
[312046552,1705572308660,770.13,0.00035204,30]
[312046553,1705572308911,770.13,0.00035204,30]
[312046554,1705572308945,1703.1,0.00035204,30]
[312046555,1705572308978,846.31,0.00035204,30]
[312046556,1705572309217,6184.5,0.00035204,30]
[312046557,1705572309258,1703.1,0.00035204,30]
[312046558,1705572309291,846.31,0.00035204,30]
[312046559,1705572309522,846.31,0.00035204,30]
[312046560,1705572309555,770.13,0.00035204,30]
[312046561,1705572309590,1703.1,0.00035204,30]
[312046562,1705572309622,6184.5,0.00035204,30]
[312046563,1705572309794,846.31,0.00035204,30]
[312046564,1705572309856,6184.5,0.00035204,30]
[312046565,1705572309888,1703.1,0.00035204,30]
[312046566,1705572310115,6184.5,0.00035204,30]
[312046567,1705572310156,770.13,0.00035204,30]
[312046568,1705572310189,1703.1,0.00035204,30]
[312046569,1705572310386,770.13865601,0.00035204,30]
[312046570,1705572310420,846.31,0.00035204,30]
[312046571,1705572310451,1703.1,0.00035204,30]
[312046572,1705572310484,6184.5,0.00035204,30]
[312046573,1705572310669,846.31,0.00035204,30]
[312046574,1705572310966,846.31,0.00035204,30]
[312046575,1705572311000,6184.5,0.00035204,30]
[312046576,1705572311035,1703.1,0.00035204,30]
[312046577,1705572311068,1277.31,0.00035204,30]
[312046578,1705572311228,846.31,0.00035204,30]
[312046579,1705572311282,1703.1,0.00035204,30]
[312046580,1705572311314,1277.31,0.00035204,30]
[312046581,1705572311480,500.0,0.00035204,30]
[312046582,1705572311559,1703.1,0.00035204,30]
[312046583,1705572311592,846.31,0.00035204,30]
[312046584,1705572311776,1277.31,0.00035204,30]
[312046585,1705572311811,6184.5,0.00035204,30]
[312046586,1705572311886,1703.1,0.00035204,30]
[312046587,1705572311919,846.31,0.00035204,30]
[312046588,1705572311953,6184.5,0.00035204,30]
[312046589,1705572311987,1277.31,0.00035204,30]
[312046590,1705572312124,1703.1,0.00035204,30]
[312046591,1705572312164,1277.31,0.00035204,30]
[312046592,1705572312216,6184.5,0.00035204,30]
[312046593,1705572312411,1703.1,0.00035204,30]
[312046594,1705572312449,846.31,0.00035204,30]
[312046595,1705572312559,6184.5,0.00035204,30]
[312046596,1705572312732,846.31,0.00035204,30]
[312046597,1705572312764,1277.31,0.00035204,30]
[312046598,1705572312830,6184.5,0.00035204,30]
[312046599,1705572312943,1703.1,0.00035204,30]
[312046600,1705572312978,588.0,0.00035204,30]
[312046601,1705572313015,846.31,0.00035204,30]
[312046602,1705572313084,6184.5,0.00035204,30]
[312046603,1705572313221,588.0,0.00035204,30]
[312046604,1705572313253,846.31,0.00035204,30]
[312046605,1705572313336,1277.31,0.00035204,30]
[312046606,1705572313399,6184.5,0.00035204,30]
[312046607,1705572313576,1703.1,0.00035204,30]
[312046608,1705572313611,1277.31,0.00035204,30]
[312046609,1705572313682,6184.5,0.00035204,30]
[312046610,1705572313831,1703.11099323,0.00035204,30]
[312046611,1705572313874,846.31,0.00035204,30]
[312046612,1705572313911,1277.31,0.00035204,30]
[312046613,1705572314144,588.0,0.00035204,30]
[312046614,1705572314187,1277.31,0.00035204,30]
[312046615,1705572314220,846.31,0.00035204,30]
[312046616,1705572314252,588.0,0.00035204,30]
[312046617,1705572314287,50000.0,0.00035204,30]
[312046618,1705572314326,6184.5,0.00035204,30]
[312046619,1705572314414,1277.31,0.00035204,30]
[312046620,1705572314448,846.31,0.00035204,30]
[312046621,1705572314549,6184.5,0.00035204,30]
[312046622,1705572314683,1277.31,0.00035204,30]
[312046623,1705572314716,846.31,0.00035204,30]
[312046624,1705572314754,588.0,0.00035204,30]
[312046625,1705572314817,6184.5,0.00035204,30]
[312046626,1705572315017,588.0,0.00035204,30]
[312046627,1705572315131,6184.68070331,0.00035204,30]
[312046628,1705572315291,588.0,0.00035204,30]
[312046629,1705572315328,846.31,0.00035204,30]
[312046630,1705572315362,1277.31,0.00035204,30]
[312046631,1705572315558,846.49162782,0.00035204,30]
[312046632,1705572315640,409.30550358,0.00035204,30]
[312046633,1705572315942,1277.31,0.00035204,30]
[312046634,1705572316348,1277.31,0.00035204,30]
[312046635,1705572316666,1277.31,0.00035204,30]
[312046636,1705572316958,1277.31,0.00035204,30]
[312046637,1705572317230,1277.31,0.00035204,30]
[312046638,1705572317482,1277.31,0.00035204,30]
[312046639,1705572317525,500.0,0.00035204,30]
[312046640,1705572317729,1277.31,0.00035204,30]
[312046641,1705572318009,1277.31,0.00035204,30]
[312046642,1705572318113,306.25,0.00035204,30]
[312046643,1705572318316,1277.31,0.00035204,30]
[312046644,1705572318542,405.00622219,0.00035204,30]
[312046645,1705572318579,1277.31,0.00035204,30]
[312046646,1705572318793,660.81,0.00035204,30]
[312046647,1705572319183,1277.44042126,0.00035204,30]
[312046648,1705572319228,660.81,0.00035204,30]
[312046649,1705572319516,660.81,0.00035204,30]
[312046650,1705572319834,660.81,0.00035204,30]
[312046651,1705572320097,660.81,0.00035204,30]
[312046652,1705572320680,660.81,0.00035204,30]
[312046653,1705572321137,660.81,0.00035204,30]
[312046654,1705572321319,660.81,0.00035204,30]
[312046655,1705572321585,22377.91204865,0.00035204,30]
[312046658,1705572477731,283.55,0.0001935,2]
[312046673,1705572581262,2591.5077,0.00021,2]
[312046679,1705572631839,-412.28137037,0.00021075,2]
[312046680,1705572631849,-164.69055572,0.00021076,2]
[312046681,1705572631858,-347.57801513,0.00021082,2]
[312046683,1705572631978,-8.78198487,0.00021082,2]
[312046684,1705572631987,-2000.0,0.000211,2]
[312046685,1705572631997,-166.07,0.000211,2]
[312046686,1705572632006,-522.04,0.00021178,2]
[312046687,1705572632016,-157.61,0.00021199,2]
[312046688,1705572632026,-3808.73948374,0.00021212,2]
[312046689,1705572632037,-458.22777,0.00021212,2]
[312046690,1705572632053,-439.47687725,0.00021212,2]
[312046691,1705572632067,-4821.47846119,0.00021212,2]
[312046698,1705572637946,-504.21309168,0.00021212,2]
[312046699,1705572638004,-924.48604397,0.00021212,2]
[312046700,1705572638064,-3172.18827217,0.00021212,2]
[312046701,1705572638075,-477.96,0.00021213,2]
[312046702,1705572638084,-150.0,0.00021289,2]
[312046703,1705572638093,-207.0,0.0002132,2]
[312046704,1705572638102,-172.52,0.0002135,2]
[312046705,1705572638111,-167.08,0.00021428,2]
[312046706,1705572638121,-158.15,0.00021462,2]
[312046707,1705572638130,-157.75,0.00021585,2]
[312046708,1705572638140,-283.55,0.00021614,2]
[312046709,1705572638149,-1882.97,0.00021644,2]
[312046710,1705572638158,-290.67,0.00021676,2]
[312046711,1705572638167,-158.15,0.00021891,2]
[312046712,1705572638179,-301.19606247,0.00021915,2]
[312046713,1705572638200,-6572.48304117,0.00021916,2]
[312046714,1705572638210,-609.96761514,0.00021917,2]
[312046715,1705572638219,-500.0,0.00021917,2]
[312046716,1705572638229,-575.23,0.00021917,2]
[312046717,1705572638238,-374.85,0.00021917,2]
[312046718,1705572638247,-295.31,0.00021917,2]
[312046719,1705572638257,-500.0,0.00021917,2]
[312046720,1705572638266,-500.0,0.00021917,2]
[312046721,1705572638277,-500.0,0.00021917,2]
[312046722,1705572638286,-480.64374084,0.00021917,2]
[312046723,1705572638295,-500.0,0.00021917,2]
[312046724,1705572638304,-500.0,0.00021917,2]
[312046725,1705572638314,-500.0,0.00021917,2]
[312046726,1705572638325,-500.0,0.00021917,2]
[312046727,1705572638334,-500.0,0.00021917,2]
[312046728,1705572638343,-500.0,0.00021917,2]
[312046729,1705572638352,-500.0,0.00021917,2]
[312046730,1705572638361,-507.91515946,0.00021917,2]
[312046731,1705572638371,-500.0,0.00021917,2]
[312046732,1705572638380,-500.0,0.00021917,2]
[312046733,1705572638390,-500.0,0.00021917,2]
[312046734,1705572638399,-506.25985988,0.00021917,2]
[312046735,1705572638408,-500.0,0.00021917,2]
[312046736,1705572638418,-500.0,0.00021917,2]
[312046737,1705572638427,-500.0,0.00021917,2]
[312046738,1705572638437,-264.54,0.00021917,2]
[312046739,1705572638446,-500.0,0.00021917,2]
[312046740,1705572638455,-182.7206687,0.00021917,2]
[312046741,1705572638468,-317.2793313,0.00021917,2]
[312046742,1705572638478,-500.0,0.00021917,2]
[312046743,1705572638487,-500.0,0.00021917,2]
[312046744,1705572638496,-250.0,0.00021918,2]
[312046745,1705572638505,-1399.03784437,0.00021918,2]
[312046747,1705572638517,-399.13216622,0.00021918,2]
[312046750,1705572638529,-1823.1236106,0.00021918,2]
[312046752,1705572638541,-6378.70637881,0.00021918,2]
[312046754,1705572638550,-613.01,0.00021941,2]
[312046756,1705572638559,-150.0,0.00022,2]
[312046758,1705572638571,-941.08515656,0.00022,2]
[312046760,1705572638580,-356.36,0.0002206,2]
[312046762,1705572638589,-956.95,0.00022178,2]
[312046764,1705572638599,-500.0,0.0002219,2]
[312046766,1705572638608,-500.0,0.0002219,2]
[312046768,1705572638617,-500.0,0.0002219,2]
[312046770,1705572638626,-500.0,0.0002219,2]
[312046772,1705572638635,-500.0,0.0002219,2]
[312046774,1705572638645,-500.0,0.0002219,2]
[312046776,1705572638654,-500.0,0.0002219,2]
[312046778,1705572638663,-500.0,0.0002219,2]
[312046780,1705572638673,-500.0,0.0002219,2]
[312046782,1705572638682,-500.0,0.0002219,2]
[312046784,1705572638691,-510.62067137,0.0002219,2]
[312046786,1705572638704,-362.69006393,0.0002219,2]
[312046788,1705572638714,-500.0,0.0002219,2]
[312046790,1705572638723,-500.0,0.0002219,2]
[312046792,1705572638733,-500.0,0.0002219,2]
[312046794,1705572638742,-500.0,0.0002219,2]
[312046796,1705572638751,-150.0,0.0002219,2]
[312046799,1705572638761,-307.9,0.00022191,2]
[312046801,1705572638770,-346.29,0.00022191,2]
[312046803,1705572638780,-644.84387051,0.00022191,2]
[312046805,1705572638789,-500.0,0.00022191,2]
[312046806,1705572638798,-500.0,0.00022191,2]
[312046807,1705572638807,-500.0,0.00022191,2]
[312046808,1705572638818,-500.0,0.00022191,2]
[312046809,1705572638827,-201.14066681,0.000223,2]
[312046810,1705572638837,-8692.85350178,0.00022305,2]
[312046966,1705572640398,-403.47012699,0.00022305,2]
[312046973,1705572640456,-10608.67637123,0.00022305,2]
[312046975,1705572640466,-158.15,0.0002232,2]
[312046977,1705572640475,-201.14066677,0.00022386,2]
[312046979,1705572640485,-9146.94565357,0.00022398,2]
[312046981,1705572640494,-22878.0,0.000224,2]
[312046983,1705572640503,-1882.97,0.00022445,2]
[312046985,1705572640512,-150.0,0.00022455,2]
[312046987,1705572640522,-299.01,0.00022455,2]
[312046989,1705572640531,-1127.141,0.00022455,2]
[312046991,1705572640540,-612.461,0.00022455,2]
[312046993,1705572640550,-319.0,0.00022455,2]
[312046995,1705572640560,-312.06948338,0.00022463,2]
[312046997,1705572640570,-248.66279264,0.00022463,2]
[312046999,1705572640579,-3869.66243357,0.00022463,2]
[312047001,1705572640588,-207.82039875,0.00022463,2]
[312047003,1705572640598,-500.0,0.00022464,2]
[312047005,1705572640608,-500.0,0.00022464,2]
[312047007,1705572640617,-500.0,0.00022464,2]
[312047010,1705572640629,-500.0,0.00022464,2]
[312047012,1705572640640,-500.0,0.00022464,2]
[312047014,1705572640649,-500.0,0.00022464,2]
[312047016,1705572640658,-500.0,0.00022465,2]
[312047018,1705572640668,-263.63,0.00022465,2]
[312047020,1705572640680,-500.0,0.00022465,2]
[312047022,1705572640690,-201.14066677,0.00022471,2]
[312047024,1705572640699,-12298.83057596,0.000225,2]
[312047026,1705572640711,-12240.31559135,0.000225,2]
[312047028,1705572640720,-150.0,0.00022548,2]
[312047030,1705572640730,-201.14066677,0.00022557,2]
[312047032,1705572640740,-201.14066677,0.00022643,2]
[312047034,1705572640750,-1064.0,0.000227,2]
[312047036,1705572640759,-201.14066677,0.00022729,2]
[312047038,1705572640769,-500.0,0.00022738,2]
[312047040,1705572640778,-500.0,0.00022738,2]
[312047042,1705572640788,-309.10332702,0.00022738,2]
[312047044,1705572640797,-500.0,0.00022738,2]
[312047046,1705572640807,-500.0,0.00022738,2]
[312047048,1705572640817,-150.0,0.00022738,2]
[312047050,1705572640827,-550.0,0.00022739,2]
[312047053,1705572640837,-500.0,0.00022739,2]
[312047055,1705572640846,-158.15,0.00022749,2]
[312047057,1705572640856,-1687.98,0.00022761,2]
[312047059,1705572640865,-154.0,0.00022766,2]
[312047061,1705572640875,-4907.21632641,0.0002277,2]
[312047063,1705572640884,-882.32,0.00022777,2]
[312047065,1705572640893,-200.0,0.00022781,2]
[312047067,1705572640902,-25590.0908,0.000228,2]
[312047069,1705572640912,-1000.0,0.000228,2]
[312047071,1705572640923,-800.0,0.00022811,2]
[312047073,1705572640932,-200.0,0.00022814,2]
[312047075,1705572640942,-800.0,0.00022814,2]
[312047077,1705572640952,-201.14066677,0.00022814,2]
[312047079,1705572640961,-800.0,0.00022815,2]
[312047081,1705572640970,-223.28488968,0.00022898,2]
[312047083,1705572640979,-58000.0,0.000229,2]
[312047085,1705572640989,-5800.0,0.000229,2]
[312047087,1705572640999,-1775.90854987,0.000229,2]
[312047104,1705572641148,-266.46734528,0.000229,2]
[312047106,1705572641159,-4850.00764039,0.000229,2]
[312047108,1705572641169,-152.01543037,0.000229,2]
[312047110,1705572641179,-201.14066677,0.000229,2]
[312047112,1705572641189,-948.0882022,0.000229,2]
[312047114,1705572641199,-607.33361536,0.000229,6]
[312047116,1705572641209,-3702.75938595,0.000229,2]
[312047118,1705572641219,-1427.49489132,0.000229,2]
[312047120,1705572641229,-3565.65851508,0.000229,2]
[312047122,1705572641238,-664.54457931,0.000229,2]
[312047124,1705572641247,-249.07878057,0.000229,2]
[312047127,1705572641257,-309.90412142,0.000229,2]
[312047129,1705572641266,-61227.40549104,0.000229,2]
[312047251,1705572642880,-8603.6,0.000229,2]
[312047254,1705572642980,-30168.99450896,0.000229,2]
[312047255,1705572642989,-316.78983954,0.000229,2]
[312047256,1705572642999,-395.74539451,0.000229,2]
[312047257,1705572643008,-167.17,0.00022912,2]
[312047258,1705572643017,-150.01,0.00022994,2]
[312047259,1705572643027,-3296.21810704,0.00022994,2]
[312047260,1705572643036,-3058.33161715,0.00022994,2]
[312047261,1705572643046,-515.40790408,0.00022994,2]
[312047262,1705572643055,-300.0,0.00022996,2]
[312047263,1705572643064,-300.0,0.00022996,2]
[312047264,1705572643074,-300.0,0.00022996,2]
[312047265,1705572643083,-268.63755361,0.00022996,2]
[312047266,1705572643092,-19967.3165995,0.00022996,2]
[312047267,1705572643102,-3710.2796489,0.00022996,2]
[312047268,1705572643112,-4659.9404419,0.00022996,2]
[312047269,1705572643121,-9738.6952678,0.00022996,2]
[312047270,1705572643130,-12449.15649114,0.00022996,2]
[312047271,1705572643142,-6475.55672399,0.00022996,2]
[312047284,1705572646311,-412.28137037,0.00022995,2]
[312047285,1705572646320,-529.05707938,0.00022996,2]
[312047286,1705572685743,-188.86,0.00022098,2]
[312047288,1705572707866,2250.0,0.00022,3]
[312047289,1705572718521,151.0,0.0003,120]
[312047290,1705572739720,220.31493018,0.00022,2]
[312047291,1705572757731,219.78170128,0.00022,2]
[312047292,1705572769257,150.0,0.00022,2]
[312047293,1705572784282,2000.0,0.00021984,2]
[312047294,1705572841907,182.56,0.0002191,10]
[312047296,1705572865928,347.26,0.00021895,2]
[312047297,1705572877643,250.0,0.00021918,2]
[312047298,1705572891557,617.63,0.00021894,2]
[312047299,1705572925878,167.08,0.00022039,2]
[312047300,1705572950818,276.83,0.00019971,2]
[312047301,1705573042497,10000.0,0.00021918,2]
[312047305,1705573198606,174.02,0.00021836,2]
[312047307,1705573238905,168.37,0.00021834,2]
[312047308,1705573239492,1757.44,0.00021834,2]
[312047309,1705573310521,941.08515656,0.000221,2]
[312047310,1705573373565,2000.0,0.00021875,2]
[312047311,1705573387923,164.5834926,0.00022006,2]
[312047312,1705573390430,505.89,0.00021875,2]
[312047313,1705573393414,284.85,0.00019953,2]
[312047314,1705573410265,250.0,0.00021918,2]
[312047315,1705573444784,207.0,0.00021295,2]
[312047317,1705573458085,179.9,0.00022,2]
[312047318,1705573460454,359.56,0.00021836,2]
[312047319,1705573461822,166.66,0.00021928,2]
[312047320,1705573513379,941.08515656,0.000221,2]
[312047321,1705573538404,200.0,0.00022006,2]
[312047322,1705573572328,10000.0,0.00021918,2]
[312047328,1705573761395,941.08515656,0.000221,2]
[312047329,1705573795828,1405.95,0.0002176,2]
[312047330,1705573829393,157.23,0.00021772,2]
[312047356,1705573832053,-941.08515656,0.00022104,2]
[312047358,1705573832063,-150.0,0.00022105,2]